[Event "FIDE World Rapid-ch Open 2018"]
[White "Tsoi, Dmitry"]
[Black "Potapov, Pavel"]
[Site "St. Petersburg"]
[Round "4.80"]
[Annotator "ChessBase"]
[Result "0-1"]
[Date "2018.12.26"]
[WhiteElo "2424"]
[BlackElo "2516"]
[PlyCount "148"]
[TimeControl "900+10"]

1. Nf3 {[%emt 0:0:0]} f5 {[%emt 0:0:0]} 2. d3 {[%emt 0:0:46]} d6 {[%emt 0:0:0]} 3. e4 {[%emt 0:0:2]} e5 {[%emt 0:0:4]} 4. Nbd2 {[%emt 0:0:8]} Nf6 {[%emt 0:0:9]} 5. Be2 {[%emt 0:0:13]} Be7 {[%emt 0:0:5]} 6. 0-0 {[%emt 0:0:0]} 0-0 {[%emt 0:0:15]} 7. c3 {[%emt 0:0:5]} Kh8 {[%emt 0:0:35]} 8. b4 {[%emt 0:0:9]} a5 {[%emt 0:0:15]} 9. Bb2 {[%emt 0:1:14]} Qe8 {[%emt 0:0:0]} 10. a3 {[%emt 0:0:31]} Nc6 {[%emt 0:0:10]} 11. Qc2 {[%emt 0:0:6]} fxe4 {[%emt 0:0:19]} 12. dxe4 {[%emt 0:0:22]} Nd8 {[%emt 0:0:6]} 13. Rfe1 {[%emt 0:0:20]
} Bg4 {[%emt 0:0:9]} 14. h3 {[%emt 0:1:8]} Bh5 {[%emt 0:0:0]} 15. Nf1 {[%emt 0:0:8]} Ne6 {[%emt 0:0:8]} 16. Ng3 {[%emt 0:0:28]} Nf4 {[%emt 0:0:28]} 17. Rad1 {[%emt 0:0:31]} Bg6 {[%emt 0:0:31]} 18. Bc1 {[%emt 0:0:7]
} N6h5 {[%emt 0:2:13]} 19. Nxh5 {[%emt 0:0:10]} Bxh5 {[%emt 0:0:0]} 20. Bxf4 {[%emt 0:0:29]} Rxf4 {[%emt 0:0:2]} 21. Nd2 {[%emt 0:0:29]
} Bg6 {[%emt 0:0:4]} 22. Bf3 {[%emt 0:0:29]} Qf7 {[%emt 0:0:18]} 23. Re3 {[%emt 0:0:38]
} d5 {[%emt 0:1:16]} 24. Qb3 {[%emt 0:2:41]} axb4 {[%emt 0:0:0]} 25. cxb4 {[%emt 0:0:26]} d4 {[%emt 0:0:11]} 26. Qxf7 {[%emt 0:0:4]} Bxf7 {[%emt 0:0:4]} 27. Rd3 {[%emt 0:0:2]} b6 {[%emt 0:1:25]} 28. Rc1 {[%emt 0:0:9]
} c5 {[%emt 0:0:28]} 29. bxc5 {[%emt 0:0:8]} Bxc5 {[%emt 0:0:0]} 30. Nc4 {[%emt 0:0:20]} Re8 {[%emt 0:1:16]} 31. g3 {[%emt 0:2:43]} Rf6 {[%emt 0:0:5]} 32. Bd1 {[%emt 0:0:3]} g6 {[%emt 0:1:12]} 33. Nd2 {[%emt 0:0:0]} Ra8 {[%emt 0:0:22]} 34. a4 {[%emt 0:0:6]} Bb4 {[%emt 0:0:14]} 35. Nf3 {[%emt 0:0:29]} Re8 {[%emt 0:0:13]} 36. Bb3 {[%emt 0:0:28]} Bxb3 {[%emt 0:0:37]
} 37. Rxb3 {[%emt 0:0:1]} Bc3 {[%emt 0:0:2]} 38. Ne1 {[%emt 0:0:2]
} Ra8 {[%emt 0:0:31]} 39. Nd3 {[%emt 0:0:13]} Re6 {[%emt 0:0:0]} 40. Rcb1 {[%emt 0:0:19]} Ra6 {[%emt 0:0:42]} 41. Rb5 {[%emt 0:0:5]} Rd6 {[%emt 0:0:36]} 42. Rxe5 {[%emt 0:0:9]} Rxa4 {[%emt 0:0:0]} 43. Re8+ {[%emt 0:0:10]
} Kg7 {[%emt 0:0:2]} 44. Re7+ {[%emt 0:0:1]} Kg8 {[%emt 0:0:0]} 45. Kg2 {[%emt 0:1:5]} Ra2 {[%emt 0:0:20]} 46. e5 {[%emt 0:0:17]} Rc6 {[%emt 0:0:19]} 47. Kf3 {[%emt 0:0:5]} Ra5 {[%emt 0:0:48]} 48. Ke4 {[%emt 0:0:7]
} b5 {[%emt 0:0:11]} 49. f4 {[%emt 0:0:22]} b4 {[%emt 0:0:13]} 50. g4 {[%emt 0:0:7]} Rb6 {[%emt 0:0:30]} 51. f5 {[%emt 0:0:29]} b3 {[%emt 0:0:1]
} 52. e6 {[%emt 0:0:33]} b2 {[%emt 0:0:27]} 53. Nf4 {[%emt 0:0:0]} Rb8 {[%emt 0:0:28]} 54. Nd5 {[%emt 0:0:53]} Rf8 {[%emt 0:0:0]} 55. f6 {[%emt 0:0:20]} Ra1 {[%emt 0:0:15]} 56. Rg7+ {[%emt 0:0:58]} Kh8 {[%emt 0:0:1]
} 57. e7 {[%emt 0:0:13]} Re8 {[%emt 0:0:1]} 58. Kd3 {[%emt 0:0:0]} Rxb1 {[%emt 0:0:5]} 59. f7 {[%emt 0:0:0]} Rd1+ {[%emt 0:0:3]} 60. Kc4 {[%emt 0:0:1]} Rc8+ {[%emt 0:0:23]} 61. Nc7 {[%emt 0:0:6]} Kxg7 {[%emt 0:0:11]
} 62. f8=Q+ {[%emt 0:0:11]} Rxf8 {[%emt 0:0:1]} 63. Ne6+ {[%emt 0:0:1]
} Kf6 {[%emt 0:0:13]} 64. exf8=Q+ {[%emt 0:0:3]} Kxe6 {[%emt 0:0:2]
} 65. Qe8+ {[%emt 0:0:51]} Kf6 {[%emt 0:0:24]} 66. Kd5 {[%emt 0:0:10]
} Kg5 {[%emt 0:0:26]} 67. Qe7+ {[%emt 0:0:25]} Kf4 {[%emt 0:0:0]} 68. Qe4+ {[%emt 0:0:12]} Kg3 {[%emt 0:0:8]} 69. Qe5+ {[%emt 0:0:2]} Kf3 {[%emt 0:0:20]} 70. Qe4+ {[%emt 0:0:12]} Kg3 {[%emt 0:0:8]} 71. Qe5+ {[%emt 0:0:11]
} Kxh3 {[%emt 0:0:5]} 72. Qe4 {[%emt 0:0:15]} b1=Q {[%emt 0:0:0]} 73. Qf3+ {[%emt 0:0:2]} Kh4 {[%emt 0:0:8]} 74. Qf2+ {[%emt 0:0:12]
} Kg5 {[%emt 0:0:5] Kxd4} 0-1

[Event "FIDE World Rapid-ch Open 2018"]
[White "Borisenko, Viacheslav"]
[Black "Popov, Valerij"]
[Site "St. Petersburg"]
[Round "4.81"]
[Annotator "ChessBase"]
[Result "0-1"]
[Date "2018.12.26"]
[WhiteElo "2289"]
[BlackElo "2532"]
[PlyCount "98"]
[TimeControl "900+10"]

1. e4 {[%emt 0:0:0]} e6 {[%emt 0:0:0]} 2. d4 {[%emt 0:0:32]} d5 {[%emt 0:0:0]} 3. Nc3 {[%emt 0:0:10]} Bb4 {[%emt 0:0:10]} 4. e5 {[%emt 0:0:10]} Ne7 {[%emt 0:0:10]} 5. Nf3 {[%emt 0:0:10]} b6 {[%emt 0:0:35]} 6. Bd2 {[%emt 0:0:0]} 0-0 {[%emt 0:0:14]} 7. Bd3 {[%emt 0:0:14]} h6 {[%emt 0:0:10]} 8. Ne2 {[%emt 0:0:20]} Bxd2+ {[%emt 0:0:10]} 9. Qxd2 {[%emt 0:0:10]} c5 {[%emt 0:0:0]} 10. c3 {[%emt 0:0:10]} Ba6 {[%emt 0:0:10]} 11. Bxa6 {[%emt 0:0:10]} Nxa6 {[%emt 0:0:10]} 12. h4 {[%emt 0:0:19]} Rc8 {[%emt 0:0:17]} 13. Nf4 {[%emt 0:0:19]
} b5 {[%emt 0:0:19]} 14. Nh5 {[%emt 0:0:10]} b4 {[%emt 0:1:27]
} 15. Rh3 {[%emt 0:2:11]} bxc3 {[%emt 0:0:24]} 16. bxc3 {[%emt 0:0:10]} cxd4 {[%emt 0:0:59]} 17. Rg3 {[%emt 0:0:29]} Ng6 {[%emt 0:1:15]} 18. cxd4 {[%emt 0:1:1]
} Qc7 {[%emt 0:0:54]} 19. Nxg7 {[%emt 0:2:45]} Kxg7 {[%emt 0:0:0]} 20. h5 {[%emt 0:0:10]} Qc3 {[%emt 0:0:10]} 21. Rd1 {[%emt 0:0:41]} Qxd2+ {[%emt 0:2:14]} 22. Rxd2 {[%emt 0:0:10]} Kh7 {[%emt 0:0:28]} 23. hxg6+ {[%emt 0:0:10]} fxg6 {[%emt 0:0:10]} 24. Nh4 {[%emt 0:0:50]} g5 {[%emt 0:0:0]} 25. Ra3 {[%emt 0:0:10]} Rc1+ {[%emt 0:0:34]} 26. Ke2 {[%emt 0:0:22]} Nc7 {[%emt 0:0:10]} 27. Nf3 {[%emt 0:0:20]} Rb8 {[%emt 0:0:16]} 28. Rxa7 {[%emt 0:0:31]
} Rbb1 {[%emt 0:0:18]} 29. a4 {[%emt 0:0:24]} Kg6 {[%emt 0:0:0]} 30. g4 {[%emt 0:0:13]} h5 {[%emt 0:0:10]} 31. gxh5+ {[%emt 0:0:19]} Kxh5 {[%emt 0:0:10]} 32. Ra2 {[%emt 0:0:22]} Rc3 {[%emt 0:1:7]} 33. Ra5 {[%emt 0:2:27]
} Rbc1 {[%emt 0:1:10]} 34. Ne1 {[%emt 0:0:35]} Rc4 {[%emt 0:0:0]} 35. Nd3 {[%emt 0:0:10]} Rb1 {[%emt 0:0:10]} 36. Rc5 {[%emt 0:0:49]} Na6 {[%emt 0:0:10]} 37. Rxc4 {[%emt 0:0:45]} dxc4 {[%emt 0:0:10]} 38. Nc5 {[%emt 0:0:10]
} Nb4 {[%emt 0:0:19]} 39. Ra3 {[%emt 0:0:10]} Rb2+ {[%emt 0:0:0]} 40. Kf1 {[%emt 0:1:15]} Nd5 {[%emt 0:0:24]} 41. a5 {[%emt 0:0:37]} c3 {[%emt 0:0:10]
} 42. Ke1 {[%emt 0:0:19]} Rb1+ {[%emt 0:0:10]} 43. Ke2 {[%emt 0:0:10]
} Nf4+ {[%emt 0:0:10]} 44. Ke3 {[%emt 0:0:17]} c2 {[%emt 0:0:0]} 45. Rc3 {[%emt 0:0:10]} c1=Q+ {[%emt 0:0:22]} 46. Rxc1 {[%emt 0:0:10]} Rxc1 {[%emt 0:0:10]} 47. a6 {[%emt 0:0:10]} Kg4 {[%emt 0:0:10]} 48. Nxe6 {[%emt 0:0:10]
} Nxe6 {[%emt 0:0:10]} 49. d5 {[%emt 0:0:10]} Kf5 {[%emt 0:0:0] Kd4 Kxe5+} 0-1

[Event "FIDE World Rapid-ch Open 2018"]
[White "Vaisser, Anatoli"]
[Black "Anikonov, Dmitry"]
[Site "St. Petersburg"]
[Round "4.82"]
[Annotator "ChessBase"]
[Result "0-1"]
[Date "2018.12.26"]
[WhiteElo "2505"]
[BlackElo "2371"]
[PlyCount "54"]
[TimeControl "900+10"]

1. d4 {[%emt 0:0:0]} e6 {[%emt 0:0:0]} 2. c4 {[%emt 0:0:2]} d5 {[%emt 0:0:0]} 3. Nc3 {[%emt 0:0:3]} a6 {[%emt 0:0:1]} 4. cxd5 {[%emt 0:0:10]} exd5 {[%emt 0:0:2]} 5. Bf4 {[%emt 0:0:3]} Nf6 {[%emt 0:0:9]} 6. e3 {[%emt 0:0:4]
} Bd6 {[%emt 0:0:2]} 7. Bxd6 {[%emt 0:0:15]} Qxd6 {[%emt 0:0:0]} 8. Bd3 {[%emt 0:0:1]} 0-0 {[%emt 0:0:9]} 9. Nge2 {[%emt 0:0:8]} Bg4 {[%emt 0:0:2]} 10. f3 {[%emt 0:0:20]} Bh5 {[%emt 0:0:8]} 11. 0-0 {[%emt 0:0:0]} Re8 {[%emt 0:0:14]} 12. Qd2 {[%emt 0:0:28]} c5 {[%emt 0:0:52]} 13. dxc5 {[%emt 0:0:54]} Qxc5 {[%emt 0:0:2]} 14. Nd4 {[%emt 0:0:1]} Nc6 {[%emt 0:0:9]
} 15. Nce2 {[%emt 0:0:13]} Qb4 {[%emt 0:0:39]} 16. Qc1 {[%emt 0:0:39]
} Rac8 {[%emt 0:0:13]} 17. Nc2 {[%emt 0:0:2]} Qb6 {[%emt 0:0:0]} 18. Qd2 {[%emt 0:1:16]} Ne5 {[%emt 0:0:46]} 19. Ncd4 {[%emt 0:2:46]} Bg6 {[%emt 0:3:2]} 20. Bxg6 {[%emt 0:2:24]} Nc4 {[%emt 0:0:24]} 21. Bxh7+ {[%emt 0:0:57]
} Nxh7 {[%emt 0:0:14]} 22. Qe1 {[%emt 0:1:55]} Nxe3 {[%emt 0:0:0]} 23. Rf2 {[%emt 0:0:3]} Nc2 {[%emt 0:0:23]} 24. Nxc2 {[%emt 0:0:4]} Rxc2 {[%emt 0:0:3]} 25. Kf1 {[%emt 0:0:8]} Qxb2 {[%emt 0:1:21]} 26. Rc1 {[%emt 0:0:40]
} Rexe2 {[%emt 0:1:9]} 27. Rxe2 {[%emt 0:0:19]} Qxc1 {[%emt 0:0:0]} 0-1

[Event "FIDE World Rapid-ch Open 2018"]
[White "Hirneise, Jens"]
[Black "Baron, Tal"]
[Site "St. Petersburg"]
[Round "4.83"]
[Annotator "ChessBase"]
[Result "1/2-1/2"]
[Date "2018.12.26"]
[WhiteElo "2371"]
[BlackElo "2532"]
[PlyCount "27"]
[TimeControl "900+10"]

1. e4 {[%emt 0:0:0]} e6 {[%emt 0:0:0]} 2. d4 {[%emt 0:0:0]} d5 {[%emt 0:0:0]} 3. Nc3 {[%emt 0:0:0]} Bb4 {[%emt 0:0:0]} 4. e5 {[%emt 0:0:0]} c5 {[%emt 0:0:2]} 5. a3 {[%emt 0:0:0]} Bxc3+ {[%emt 0:0:3]} 6. bxc3 {[%emt 0:0:0]
} Ne7 {[%emt 0:0:11]} 7. Nf3 {[%emt 0:0:2]} b6 {[%emt 0:0:3]
} 8. Bb5+ {[%emt 0:0:2]} Bd7 {[%emt 0:0:2]} 9. Bd3 {[%emt 0:0:2]} Bc8 {[%emt 0:0:1]
} 10. Bb5+ {[%emt 0:0:32]} Bd7 {[%emt 0:0:7]} 11. Bd3 {[%emt 0:0:4]
} Bc8 {[%emt 0:0:9]} 12. Bb5+ {[%emt 0:0:37]} Bd7 {[%emt 0:0:0]} 13. Bd3 {[%emt 0:0:30]} Bc8 {[%emt 0:0:34]} 14. Bb5+ 1/2-1/2

[Event "FIDE World Rapid-ch Open 2018"]
[White "Anisimov, Pavel"]
[Black "Kabanov, Nikolai"]
[Site "St. Petersburg"]
[Round "4.84"]
[Annotator "ChessBase"]
[Result "1-0"]
[Date "2018.12.26"]
[WhiteElo "2533"]
[BlackElo "2450"]
[PlyCount "115"]
[TimeControl "900+10"]

1. d4 {[%emt 0:0:0]} d6 {[%emt 0:0:0]} 2. Nf3 {[%emt 0:0:6]} Nf6 {[%emt 0:0:0]
} 3. Bf4 {[%emt 0:0:5]} g6 {[%emt 0:0:1]} 4. h3 {[%emt 0:0:0]} Bg7 {[%emt 0:0:7]} 5. e3 {[%emt 0:0:2]} 0-0 {[%emt 0:0:8]} 6. Be2 {[%emt 0:0:2]
} c5 {[%emt 0:0:8]} 7. c3 {[%emt 0:0:30]} cxd4 {[%emt 0:0:16]
} 8. exd4 {[%emt 0:0:4]} b6 {[%emt 0:0:27]} 9. 0-0 {[%emt 0:0:11]} Bb7 {[%emt 0:0:3]
} 10. a4 {[%emt 0:0:10]} Nc6 {[%emt 0:1:4]} 11. Na3 {[%emt 0:0:0]} Nd5 {[%emt 0:0:20]} 12. Bh2 {[%emt 0:1:33]} e5 {[%emt 0:0:7]} 13. Bc4 {[%emt 0:1:33]} Nf4 {[%emt 0:0:31]} 14. Bxf4 {[%emt 0:0:10]} exf4 {[%emt 0:0:2]
} 15. Bd5 {[%emt 0:0:24]} Qd7 {[%emt 0:1:23]} 16. Re1 {[%emt 0:0:0]} Ne7 {[%emt 0:0:30]} 17. Bxb7 {[%emt 0:0:12]} Qxb7 {[%emt 0:0:1]} 18. Qd2 {[%emt 0:0:17]} Bh6 {[%emt 0:0:11]} 19. Re2 {[%emt 0:0:55]} Nf5 {[%emt 0:0:13]
} 20. Rae1 {[%emt 0:0:31]} Qd7 {[%emt 0:0:8]} 21. Qc2 {[%emt 0:0:15]
} Rfe8 {[%emt 0:0:11]} 22. Rxe8+ {[%emt 0:0:37]} Rxe8 {[%emt 0:0:0]} 23. Rxe8+ {[%emt 0:0:1]} Qxe8 {[%emt 0:0:2]} 24. Nc4 {[%emt 0:0:0]} Qe6 {[%emt 0:0:42]} 25. Qd3 {[%emt 0:0:10]} Qd7 {[%emt 0:0:36]} 26. b3 {[%emt 0:1:2]} b5 {[%emt 0:0:10]} 27. axb5 {[%emt 0:0:14]} Qxb5 {[%emt 0:0:0]} 28. Qc2 {[%emt 0:0:19]} Qa6 {[%emt 0:0:49]} 29. Kh2 {[%emt 0:0:15]} Bf8 {[%emt 0:1:45]} 30. Ncd2 {[%emt 0:2:26]} Qe2 {[%emt 0:0:25]} 31. Kg1 {[%emt 0:0:1]
} d5 {[%emt 0:2:21]} 32. Qb1 {[%emt 0:0:17]} Nd6 {[%emt 0:0:0]} 33. Qf1 {[%emt 0:0:17]} Qe7 {[%emt 0:0:33]} 34. c4 {[%emt 0:0:23]} Qb7 {[%emt 0:1:23]} 35. Qd3 {[%emt 0:1:41]} dxc4 {[%emt 0:0:29]} 36. bxc4 {[%emt 0:0:4]
} a5 {[%emt 0:0:5]} 37. c5 {[%emt 0:0:28]} Nf5 {[%emt 0:0:36]
} 38. Qc4 {[%emt 0:0:9]} Ne7 {[%emt 0:1:11]} 39. Ne5 {[%emt 0:0:29]} Qd5 {[%emt 0:0:18]
} 40. Qa4 {[%emt 0:2:24]} Kg7 {[%emt 0:1:20]} 41. Ndf3 {[%emt 0:0:18]
} f6 {[%emt 0:0:16]} 42. Nc4 {[%emt 0:0:12]} g5 {[%emt 0:0:40]
} 43. Nxa5 {[%emt 0:0:4]} h5 {[%emt 0:0:2]} 44. Qc4 {[%emt 0:0:45]} Qa8 {[%emt 0:0:5]
} 45. Nb3 {[%emt 0:0:19]} g4 {[%emt 0:0:6]} 46. hxg4 {[%emt 0:0:0]} hxg4 {[%emt 0:0:1]} 47. Nfd2 {[%emt 0:0:13]} Qc8 {[%emt 0:1:34]} 48. d5 {[%emt 0:0:6]} Qf5 {[%emt 0:0:4]} 49. d6 {[%emt 0:0:16]} Ng6 {[%emt 0:0:11]
} 50. Nd4 {[%emt 0:0:13]} Qe5 {[%emt 0:0:6]} 51. Ne6+ {[%emt 0:0:21]
} Kh6 {[%emt 0:0:2]} 52. d7 {[%emt 0:0:28]} Be7 {[%emt 0:0:0]} 53. d8=Q {[%emt 0:0:12]} Bxd8 {[%emt 0:0:2]} 54. Nxd8 {[%emt 0:0:1]} Qe1+ {[%emt 0:0:11]} 55. Nf1 {[%emt 0:0:0]} g3 {[%emt 0:0:7]} 56. fxg3 {[%emt 0:0:15]
} fxg3 {[%emt 0:0:2]} 57. Qd4 {[%emt 0:0:20]} Kh5 {[%emt 0:0:0]} 58. Qe3 {[%emt 0:0:14]} 1-0

[Event "FIDE World Rapid-ch Open 2018"]
[White "Sokolin, Leonid"]
[Black "Zubritskiy, Artyom"]
[Site "St. Petersburg"]
[Round "4.85"]
[Annotator "ChessBase"]
[Result "1-0"]
[Date "2018.12.26"]
[WhiteElo "2508"]
[BlackElo "2442"]
[PlyCount "65"]
[TimeControl "900+10"]

1. e4 {[%emt 0:0:0]} c5 {[%emt 0:0:0]} 2. Nf3 {[%emt 0:0:0]} d6 {[%emt 0:0:0]} 3. d4 {[%emt 0:0:0]} cxd4 {[%emt 0:0:0]} 4. Qxd4 {[%emt 0:0:0]} a6 {[%emt 0:0:1]} 5. Nc3 {[%emt 0:0:15]} Nc6 {[%emt 0:0:2]} 6. Qd3 {[%emt 0:0:1]
} g6 {[%emt 0:0:8]} 7. Bf4 {[%emt 0:1:8]} Bg7 {[%emt 0:0:5]
} 8. h3 {[%emt 0:0:47]} Qa5 {[%emt 0:3:13]} 9. Be2 {[%emt 0:0:27]} Nf6 {[%emt 0:0:11]
} 10. 0-0 {[%emt 0:0:19]} 0-0 {[%emt 0:0:12]} 11. a3 {[%emt 0:0:0]} Nd7 {[%emt 0:3:25]} 12. b4 {[%emt 0:0:31]} Qd8 {[%emt 0:0:2]} 13. Rad1 {[%emt 0:0:11]} Nde5 {[%emt 0:0:31]} 14. Qe3 {[%emt 0:1:18]} Nxf3+ {[%emt 0:2:39]
} 15. Bxf3 {[%emt 0:0:2]} Ne5 {[%emt 0:0:2]} 16. Be2 {[%emt 0:0:19]
} Be6 {[%emt 0:0:4]} 17. Bxe5 {[%emt 0:4:6]} Bxe5 {[%emt 0:0:0]} 18. f4 {[%emt 0:0:2]} Bxc3 {[%emt 0:4:26]} 19. Qxc3 {[%emt 0:0:1]} Rc8 {[%emt 0:0:20]} 20. Qd2 {[%emt 0:2:43]} Qc7 {[%emt 0:0:15]} 21. f5 {[%emt 0:0:6]
} Bc4 {[%emt 0:0:3]} 22. Bd3 {[%emt 0:0:15]} Bxd3 {[%emt 0:0:0]} 23. cxd3 {[%emt 0:0:0]} Qc3 {[%emt 0:0:2]} 24. Qg5 {[%emt 0:0:13]} Qe5 {[%emt 0:1:9]} 25. Rf4 {[%emt 0:0:39]} Qd4+ {[%emt 0:0:49]} 26. Kh1 {[%emt 0:0:34]
} Qe3 {[%emt 0:0:2]} 27. Kh2 {[%emt 0:0:46]} Rc1 {[%emt 0:0:0]} 28. Rxc1 {[%emt 0:1:22]} Qxc1 {[%emt 0:0:1]} 29. Qh4 {[%emt 0:1:22]} Qxa3 {[%emt 0:0:22]} 30. Qxe7 {[%emt 0:0:29]} Qxb4 {[%emt 0:0:1]} 31. Qg5 {[%emt 0:0:35]
} Qc5 {[%emt 0:0:17]} 32. Qh6 {[%emt 0:0:18]} gxf5 33. Rxf5 {[%emt 0:0:5]
} 1-0

[Event "FIDE World Rapid-ch Open 2018"]
[White "Oganian, Miran"]
[Black "Gurvich, Vitaly"]
[Site "St. Petersburg"]
[Round "4.87"]
[Annotator "NA"]
[Result "1-0"]
[Date "2018.12.26"]
[WhiteElo "2423"]
[BlackElo "2270"]
[PlyCount "105"]
[TimeControl "900+10"]

1. d4 {[%emt 0:0:0]} Nf6 {[%emt 0:0:0]} 2. c4 {[%emt 0:0:0]} e6 {[%emt 0:0:0]} 3. g3 {[%emt 0:0:0]} d5 {[%emt 0:0:19]} 4. Nf3 {[%emt 0:0:0]} dxc4 {[%emt 0:0:10]} 5. Bg2 {[%emt 0:0:12]} Bd7 {[%emt 0:0:4]} 6. Ne5 {[%emt 0:0:0]} Bc6 {[%emt 0:0:1]} 7. Nxc6 {[%emt 0:0:44]} Nxc6 {[%emt 0:0:2]} 8. 0-0 {[%emt 0:1:16]} Qd7 {[%emt 0:0:18]} 9. e3 {[%emt 0:0:13]} 0-0-0 {[%emt 0:0:33]
} 10. Qa4 {[%emt 0:1:42]} Nd5 {[%emt 0:0:25]} 11. Qxc4 {[%emt 0:0:12]
} h5 {[%emt 0:0:15]} 12. Nc3 {[%emt 0:0:14]} h4 {[%emt 0:0:18]
} 13. Bd2 {[%emt 0:1:45]} f5 {[%emt 0:0:26]} 14. b4 {[%emt 0:0:42]} Bxb4 {[%emt 0:3:30]
} 15. Rab1 {[%emt 0:0:34]} hxg3 {[%emt 0:2:31]} 16. hxg3 {[%emt 0:0:8]
} Ba5 {[%emt 0:0:46]} 17. Rfc1 {[%emt 0:0:14]} g5 {[%emt 0:0:0]} 18. Nxd5 {[%emt 0:5:36]} exd5 {[%emt 0:0:18]} 19. Qd3 {[%emt 0:0:36]} Bb6 {[%emt 0:0:16]} 20. a4 {[%emt 0:0:23]} a5 {[%emt 0:0:27]} 21. Rb5 {[%emt 0:0:14]
} Qf7 {[%emt 0:4:31]} 22. Qb3 {[%emt 0:0:4]} f4 {[%emt 0:0:0]} 23. Rxd5 {[%emt 0:0:6]} Rdf8 {[%emt 0:1:2]} 24. exf4 {[%emt 0:1:5]} Nxd4 {[%emt 0:0:53]} 25. Qxb6 {[%emt 0:0:37]} Ne2+ {[%emt 0:0:6]} 26. Kf1 {[%emt 0:0:1]
} Nxc1 {[%emt 0:0:9]} 27. Qa7 {[%emt 0:1:2]} c6 {[%emt 0:0:0]} 28. Bxa5 {[%emt 0:1:15]} Qxd5 {[%emt 0:0:44]} 29. Bxd5 {[%emt 0:0:5]} cxd5 {[%emt 0:0:1]} 30. Qc5+ {[%emt 0:0:19]} Kd7 {[%emt 0:0:8]} 31. Qxd5+ {[%emt 0:0:2]} Kc8 {[%emt 0:0:5]} 32. Qe6+ {[%emt 0:0:22]} Kb8 {[%emt 0:0:0]} 33. Qe5+ {[%emt 0:0:7]} Ka7 {[%emt 0:0:22]} 34. Kg2 {[%emt 0:0:15]} Rc8 {[%emt 0:0:17]} 35. Bc7 {[%emt 0:0:12]} Nb3 {[%emt 0:0:11]} 36. fxg5 {[%emt 0:0:6]
} b6 {[%emt 0:0:7]} 37. Bxb6+ {[%emt 0:0:14]} Kxb6 {[%emt 0:0:0]} 38. Qb5+ {[%emt 0:0:1]} Ka7 {[%emt 0:0:0]} 39. Qxb3 {[%emt 0:0:1]
} Rhg8 {[%emt 0:0:6]} 40. Qf7+ {[%emt 0:0:13]} Kb6 {[%emt 0:0:3]} 41. f4 {[%emt 0:0:3]
} Rcf8 {[%emt 0:0:35]} 42. Qe6+ {[%emt 0:0:6]} Kc5 {[%emt 0:0:0]} 43. a5 {[%emt 0:0:6]} Re8 {[%emt 0:0:0]} 44. Qb6+ {[%emt 0:0:4]} Kc4 {[%emt 0:0:1]} 45. Kf3 {[%emt 0:0:5]} Rb8 {[%emt 0:0:12]} 46. Qc6+ {[%emt 0:0:4]
} Kd4 {[%emt 0:0:3]} 47. Qd6+ {[%emt 0:0:11]} Kc4 {[%emt 0:0:0]} 48. a6 {[%emt 0:0:5]} Ra8 {[%emt 0:0:6]} 49. Qc6+ {[%emt 0:0:17]} Kd3 {[%emt 0:0:6]} 50. a7 {[%emt 0:0:10]} Rgd8 {[%emt 0:0:12]} 51. Qb7 {[%emt 0:0:21]
} Kd4 {[%emt 0:0:13]} 52. g6 {[%emt 0:0:4]} Kc5 {[%emt 0:0:0]} 53. f5 {[%emt 0:0:17]} 1-0

[Event "FIDE World Rapid-ch Open 2018"]
[White "Makoveev, Ilya"]
[Black "Paravyan, David"]
[Site "St. Petersburg"]
[Round "4.88"]
[Annotator "ChessBase"]
[Result "1/2-1/2"]
[Date "2018.12.26"]
[WhiteElo "2257"]
[BlackElo "2634"]
[PlyCount "180"]
[TimeControl "900+10"]

1. e4 {[%emt 0:0:0]} c5 {[%emt 0:0:0]} 2. Nf3 {[%emt 0:0:0]} d6 {[%emt 0:0:0]} 3. d4 {[%emt 0:0:0]} cxd4 {[%emt 0:0:0]} 4. Nxd4 {[%emt 0:0:0]} Nf6 {[%emt 0:0:0]} 5. Nc3 {[%emt 0:0:0]} Bd7 {[%emt 0:0:0]} 6. f3 {[%emt 0:1:42]
} e5 {[%emt 0:0:0]} 7. Nb3 {[%emt 0:0:13]} Be7 {[%emt 0:0:0]
} 8. Be3 {[%emt 0:0:10]} 0-0 {[%emt 0:0:2]} 9. Qd2 {[%emt 0:0:18]} a5 {[%emt 0:0:0]
} 10. a4 {[%emt 0:0:44]} Na6 {[%emt 0:0:2]} 11. Bb5 {[%emt 0:0:0]} Be6 {[%emt 0:0:16]} 12. 0-0 {[%emt 0:0:43]} Nc7 {[%emt 0:1:5]} 13. Rfd1 {[%emt 0:1:26]} Nxb5 {[%emt 0:0:54]} 14. axb5 {[%emt 0:0:43]} Nd7 {[%emt 0:1:1]
} 15. Nd5 {[%emt 0:3:57]} Bxd5 {[%emt 0:0:1]} 16. Qxd5 {[%emt 0:0:2]
} Qc7 {[%emt 0:0:1]} 17. c4 {[%emt 0:1:55]} Rfc8 {[%emt 0:0:0]} 18. Nd2 {[%emt 0:0:56]} a4 {[%emt 0:0:28]} 19. Qd3 {[%emt 0:0:48]} h6 {[%emt 0:0:8]
} 20. Qc2 {[%emt 0:0:23]} Nc5 {[%emt 0:0:47]} 21. Ra3 {[%emt 0:0:0]} Bg5 {[%emt 0:0:21]} 22. Nf1 {[%emt 0:0:30]} Nb3 {[%emt 0:0:3]} 23. Bxg5 {[%emt 0:0:13]} hxg5 {[%emt 0:0:1]} 24. Ne3 {[%emt 0:0:1]} Qc5 {[%emt 0:0:15]
} 25. Rxb3 {[%emt 0:0:12]} axb3 {[%emt 0:0:4]} 26. Qxb3 {[%emt 0:0:1]
} Ra5 {[%emt 0:0:43]} 27. Kf1 {[%emt 0:0:17]} Rca8 {[%emt 0:0:0]} 28. Nc2 {[%emt 0:0:53]} Ra4 {[%emt 0:0:7]} 29. Na3 {[%emt 0:0:8]} g6 {[%emt 0:1:54]} 30. Rd5 {[%emt 0:0:10]} Qb4 {[%emt 0:0:1]} 31. Rd3 {[%emt 0:0:22]
} Kg7 {[%emt 0:0:12]} 32. Ke2 {[%emt 0:0:10]} Qc5 {[%emt 0:0:0]} 33. Kf1 {[%emt 0:0:11]} Qb4 {[%emt 0:1:55]} 34. Ke2 Kf8 35. Qc2 {[%emt 0:0:34]
} Ke7 {[%emt 0:0:23]} 36. Qc1 {[%emt 0:0:10]} Rc8 {[%emt 0:0:0]} 37. Qxg5+ {[%emt 0:0:4]} Ke8 {[%emt 0:0:19]} 38. Qc1 {[%emt 0:0:13]} Rc7 {[%emt 0:0:38]} 39. h3 {[%emt 0:0:8]} Kd7 {[%emt 0:0:22]} 40. Qc2 {[%emt 0:0:13]
} Ra8 {[%emt 0:0:42]} 41. Qc1 {[%emt 0:0:6]} b6 {[%emt 0:0:0]} 42. Qc2 {[%emt 0:0:8]} Kc8 {[%emt 0:0:4]} 43. Qc1 {[%emt 0:0:9]} Kb7 {[%emt 0:0:3]} 44. Qc2 {[%emt 0:0:6]} Rd8 {[%emt 0:1:41]} 45. Qc1 {[%emt 0:0:7]
} f5 {[%emt 0:0:1]} 46. b3 {[%emt 0:0:27]} fxe4 {[%emt 0:0:0]} 47. fxe4 {[%emt 0:0:0]} Rf8 {[%emt 0:0:1]} 48. Nc2 {[%emt 0:0:8]} Qc5 {[%emt 0:0:3]} 49. Qe3 {[%emt 0:0:7]} Rcf7 {[%emt 0:0:28]} 50. Qxc5 {[%emt 0:0:11]
} dxc5 {[%emt 0:0:1]} 51. Rf3 {[%emt 0:0:23]} Rxf3 {[%emt 0:0:0]} 52. gxf3 {[%emt 0:0:1]} Rh8 {[%emt 0:0:8]} 53. Ne1 {[%emt 0:0:9]} Rxh3 {[%emt 0:0:6]} 54. Nd3 {[%emt 0:0:3]} Rh5 {[%emt 0:0:3]} 55. Nf2 {[%emt 0:0:27]
} Kc7 {[%emt 0:0:34]} 56. Ke3 {[%emt 0:0:8]} Kd6 {[%emt 0:0:0]} 57. Kd3 {[%emt 0:0:12]} Rh2 {[%emt 0:0:29]} 58. Nd1 {[%emt 0:0:11]} g5 {[%emt 0:0:35]} 59. Ke3 {[%emt 0:0:7]} Ra2 {[%emt 0:0:37]} 60. Kd3 {[%emt 0:0:6]
} Rg2 {[%emt 0:0:3]} 61. Ke3 {[%emt 0:0:3]} g4 {[%emt 0:0:0]} 62. fxg4 {[%emt 0:0:8]} Rg3+ {[%emt 0:0:2]} 63. Kd2 {[%emt 0:0:23]} Rxg4 {[%emt 0:0:17]} 64. Nc3 {[%emt 0:0:12]} Rg2+ {[%emt 0:0:1]} 65. Kd3 {[%emt 0:0:9]
} Rg3+ {[%emt 0:0:53]} 66. Kd2 {[%emt 0:0:9]} Kc7 {[%emt 0:0:0]} 67. Nd5+ {[%emt 0:0:2]} Kb7 {[%emt 0:0:0]} 68. Ne3 {[%emt 0:0:15]} Rh3 {[%emt 0:1:1]} 69. Ke2 {[%emt 0:0:4]} Rh6 {[%emt 0:0:34]} 70. Nd5 {[%emt 0:0:19]
} Rh4 {[%emt 0:0:17]} 71. Kd3 {[%emt 0:0:2]} Rh3+ {[%emt 0:0:0]} 72. Ne3 {[%emt 0:0:6]} Kc7 {[%emt 0:0:33]} 73. Kd2 {[%emt 0:0:2]} Kc8 {[%emt 0:0:9]} 74. Kd3 {[%emt 0:0:5]} Kd7 {[%emt 0:0:5]} 75. Kd2 {[%emt 0:0:1]
} Rh6 {[%emt 0:0:18]} 76. Nd5 {[%emt 0:0:32]} Kc8 {[%emt 0:0:0]} 77. Kd3 {[%emt 0:0:10]} Kb7 {[%emt 0:0:4]} 78. Kd2 {[%emt 0:0:6]} Rh3 {[%emt 0:0:18]} 79. Ne3 {[%emt 0:0:5]} Kc8 {[%emt 0:0:7]} 80. Ke2 {[%emt 0:0:6]
} Kd7 {[%emt 0:0:5]} 81. Kd2 {[%emt 0:0:1]} Ke6 {[%emt 0:0:0]} 82. Ke2 {[%emt 0:0:23]} Kf6 {[%emt 0:0:13]} 83. Nd5+ {[%emt 0:0:31]} Ke6 {[%emt 0:0:12]} 84. Ne3 {[%emt 0:0:3]} Rg3 {[%emt 0:0:33]} 85. Kd2 {[%emt 0:0:4]
} Rf3 {[%emt 0:0:18]} 86. Ke2 {[%emt 0:0:3]} Rh3 {[%emt 0:0:0]} 87. Kd2 {[%emt 0:0:1]} Kf7 {[%emt 0:1:10]} 88. Ke2 {[%emt 0:0:8]} Kg6 {[%emt 0:0:13]} 89. Nd5 {[%emt 0:0:11]} Rxb3 {[%emt 0:0:34]} 90. Nxb6 {[%emt 0:0:1]
} Kg5 {[%emt 0:0:28]} 1/2-1/2